[Event "Early-Titled-Tuesday-Blitz-May-14-2024"]
[Site "Chess.com"]
[Date "2024.05.14"]
[Round "4"]
[White "campochess"]
[Black "fmAguilar1"]
[Result "1-0"]
[WhiteElo "2111"]
[BlackElo "2324"]
[TimeControl "180+1"]
[EndTime "8:42:17 PDT"]
[Termination "campochess won by resignation"]

1. c4 {[%clk 0:02:48.3]} 1... e5 {[%clk 0:02:58.5]} 2. Nc3 {[%clk 0:02:48]} 2...
Nf6 {[%clk 0:02:59.2]} 3. g3 {[%clk 0:02:47.8]} 3... c6 {[%clk 0:02:58.7]} 4.
Bg2 {[%clk 0:02:47.8]} 4... d5 {[%clk 0:02:59.3]} 5. cxd5 {[%clk 0:02:47.6]}
5... cxd5 {[%clk 0:03:00.2]} 6. d4 {[%clk 0:02:47.7]} 6... exd4 {[%clk
0:02:59.7]} 7. Qxd4 {[%clk 0:02:45.7]} 7... Nc6 {[%clk 0:03:00.2]} 8. Qd1 {[%clk
0:02:44.8]} 8... d4 {[%clk 0:03:00]} 9. Nb1 {[%clk 0:02:43.3]} 9... Bb4+ {[%clk
0:02:56.1]} 10. Nd2 {[%clk 0:02:41.6]} 10... O-O {[%clk 0:02:55.2]} 11. a3
{[%clk 0:02:41.1]} 11... Ba5 {[%clk 0:02:45.4]} 12. Nf3 {[%clk 0:02:38.1]} 12...
Re8 {[%clk 0:02:44.3]} 13. O-O {[%clk 0:02:37.9]} 13... Bf5 {[%clk 0:02:43.2]}
14. b4 {[%clk 0:02:37.6]} 14... Bb6 {[%clk 0:02:38.8]} 15. Nb3 {[%clk
0:02:37.1]} 15... d3 {[%clk 0:02:37.5]} 16. e3 {[%clk 0:02:32.2]} 16... Bg4
{[%clk 0:02:27.4]} 17. Bd2 {[%clk 0:02:29.1]} 17... Qd5 {[%clk 0:02:23.9]} 18.
h3 {[%clk 0:02:25.9]} 18... Be6 {[%clk 0:02:16]} 19. Rb1 {[%clk 0:02:18.1]}
19... Qd7 {[%clk 0:02:09.9]} 20. Nc5 {[%clk 0:02:15.4]} 20... Bxc5 {[%clk
0:02:07.6]} 21. bxc5 {[%clk 0:02:14.7]} 21... Rad8 {[%clk 0:02:06.6]} 22. Nd4
{[%clk 0:02:10.1]} 22... Nxd4 {[%clk 0:02:02.8]} 23. exd4 {[%clk 0:02:09.1]}
23... Qxd4 {[%clk 0:02:03.7]} 24. Rxb7 {[%clk 0:02:06.2]} 24... Qxc5 {[%clk
0:02:01.8]} 25. Be3 {[%clk 0:02:00]} 25... Qxa3 {[%clk 0:01:58.7]} 26. Rxa7
{[%clk 0:01:59.9]} 26... Qb3 {[%clk 0:01:56.9]} 27. Qd2 {[%clk 0:01:53.6]} 27...
Qc2 {[%clk 0:01:52.6]} 28. Rd1 {[%clk 0:01:40.5]} 28... Bb3 {[%clk 0:01:46.8]}
29. Rda1 {[%clk 0:01:34.1]} 29... Bd5 {[%clk 0:01:32.5]} 30. Bf1 {[%clk
0:01:30.7]} 30... Qxd2 {[%clk 0:01:30]} 31. Bxd2 {[%clk 0:01:30.1]} 31... Bf3
{[%clk 0:01:28.5]} 32. R7a3 {[%clk 0:01:18.6]} 32... Be4 {[%clk 0:01:16.8]} 33.
f3 {[%clk 0:01:13.7]} 33... Bg6 {[%clk 0:01:16.1]} 34. g4 {[%clk 0:01:06.2]}
34... h6 {[%clk 0:01:16.2]} 35. h4 {[%clk 0:01:03.7]} 35... Rd7 {[%clk
0:01:05.8]} 36. Kf2 {[%clk 0:01:03.5]} 36... Red8 {[%clk 0:01:05.6]} 37. Rc1
{[%clk 0:00:59.4]} 37... h5 {[%clk 0:01:03.1]} 38. g5 {[%clk 0:00:57.7]} 38...
Ne8 {[%clk 0:00:49.6]} 39. Re1 {[%clk 0:00:44.1]} 39... Nc7 {[%clk 0:00:46.7]}
40. Bh3 {[%clk 0:00:37.9]} 40... Rd4 {[%clk 0:00:37.2]} 41. f4 {[%clk
0:00:36.4]} 41... Be4 {[%clk 0:00:24.7]} 42. Ke3 {[%clk 0:00:28.9]} 42... Rc4
{[%clk 0:00:20.5]} 43. Kf2 {[%clk 0:00:19.5]} 43... Nd5 {[%clk 0:00:21.1]} 44.
Ra2 {[%clk 0:00:15.6]} 44... Rdc8 {[%clk 0:00:20.9]} 45. Bxc8 {[%clk 0:00:12.7]}
45... Rxc8 {[%clk 0:00:21.5]} 46. Rxe4 {[%clk 0:00:12.3]} 46... Rc2 {[%clk
0:00:21.5]} 47. Rxc2 {[%clk 0:00:11.1]} 47... dxc2 {[%clk 0:00:22.4]} 48. Rd4
{[%clk 0:00:11.2]} 48... Nb6 {[%clk 0:00:21.3]} 49. Ke3 {[%clk 0:00:10.3]} 49...
g6 {[%clk 0:00:19.8]} 50. Kd3 {[%clk 0:00:10.4]} 50... Kf8 {[%clk 0:00:17.8]}
51. Kxc2 {[%clk 0:00:10.9]} 51... Ke7 {[%clk 0:00:18.2]} 52. Kd3 {[%clk
0:00:11.6]} 52... Ke6 {[%clk 0:00:17.5]} 53. Bb4 {[%clk 0:00:12.2]} 53... Kf5
{[%clk 0:00:17.8]} 54. Bc5 {[%clk 0:00:10.9]} 54... Na8 {[%clk 0:00:14.8]} 55.
Ke3 {[%clk 0:00:11.4]} 55... Nc7 {[%clk 0:00:14.5]} 56. Rd6 {[%clk 0:00:11.2]}
56... Ne6 {[%clk 0:00:13.5]} 57. Rxe6 {[%clk 0:00:11.1]} 57... fxe6 {[%clk
0:00:11.8]} 58. Bd6 {[%clk 0:00:11.2]} 58... Kg4 {[%clk 0:00:11.2]} 59. Ke4
{[%clk 0:00:11.4]} 59... Kxh4 {[%clk 0:00:11.7]} 60. Ke5 {[%clk 0:00:11.7]}
60... Kg4 {[%clk 0:00:10.9]} 61. Kxe6 {[%clk 0:00:12.2]} 61... h4 {[%clk
0:00:11.4]} 62. Kf6 {[%clk 0:00:11.4]} 62... Kh5 {[%clk 0:00:10.3]} 63. f5
{[%clk 0:00:10.5]} 63... gxf5 {[%clk 0:00:10.1]} 64. g6 {[%clk 0:00:10.6]} 64...
Kh6 {[%clk 0:00:07.9]} 65. g7 {[%clk 0:00:10.3]} 65... Kh7 {[%clk 0:00:07.8]}
66. Kf7 {[%clk 0:00:10.6]} 1-0

[Event "Early-Titled-Tuesday-Blitz-May-14-2024"]
[Site "Chess.com"]
[Date "2024.05.14"]
[Round "4"]
[White "SaqoChess_Twitch"]
[Black "IndianSchoolOfSuffering"]
[Result "0-1"]
[WhiteElo "2669"]
[BlackElo "2506"]
[TimeControl "180+1"]
[EndTime "8:42:25 PDT"]
[Termination "IndianSchoolOfSuffering won by checkmate"]

1. d4 {[%clk 0:03:00.9]} 1... Nf6 {[%clk 0:02:59.4]} 2. c4 {[%clk 0:03:01.4]}
2... e6 {[%clk 0:02:59.4]} 3. Nc3 {[%clk 0:03:02.1]} 3... Bb4 {[%clk 0:02:58.5]}
4. e3 {[%clk 0:03:02.2]} 4... O-O {[%clk 0:02:56.3]} 5. a3 {[%clk 0:03:02.6]}
5... Bxc3+ {[%clk 0:02:55.1]} 6. bxc3 {[%clk 0:03:03.5]} 6... c5 {[%clk
0:02:55.2]} 7. Bd3 {[%clk 0:03:03.6]} 7... d6 {[%clk 0:02:55]} 8. Ne2 {[%clk
0:03:03.8]} 8... Nc6 {[%clk 0:02:55.1]} 9. O-O {[%clk 0:03:04.4]} 9... b6 {[%clk
0:02:55.4]} 10. e4 {[%clk 0:03:04.3]} 10... Ba6 {[%clk 0:02:54.5]} 11. f4 {[%clk
0:03:03.5]} 11... Na5 {[%clk 0:02:51.9]} 12. f5 {[%clk 0:03:03.2]} 12... Bxc4
{[%clk 0:02:39.6]} 13. Bg5 {[%clk 0:03:02]} 13... e5 {[%clk 0:02:34.4]} 14. d5
{[%clk 0:02:58.4]} 14... h6 {[%clk 0:02:32.3]} 15. Bh4 {[%clk 0:02:57.6]} 15...
Bxd3 {[%clk 0:02:30.8]} 16. Qxd3 {[%clk 0:02:54.9]} 16... g5 {[%clk 0:02:25.7]}
17. fxg6 {[%clk 0:02:52.6]} 17... fxg6 {[%clk 0:02:25.7]} 18. Qe3 {[%clk
0:02:42.1]} 18... Kg7 {[%clk 0:02:23.5]} 19. Qh3 {[%clk 0:02:42]} 19... Qc8
{[%clk 0:02:21.6]} 20. Qe3 {[%clk 0:02:23.3]} 20... Nc4 {[%clk 0:02:09.5]} 21.
Qd3 {[%clk 0:02:23.1]} 21... b5 {[%clk 0:02:07.4]} 22. Ng3 {[%clk 0:02:20.7]}
22... Qd7 {[%clk 0:01:58.6]} 23. a4 {[%clk 0:02:06.6]} 23... Nh7 {[%clk
0:01:35.9]} 24. axb5 {[%clk 0:02:04.1]} 24... Nb6 {[%clk 0:01:17.9]} 25. c4
{[%clk 0:02:00.1]} 25... Rxf1+ {[%clk 0:01:16.3]} 26. Rxf1 {[%clk 0:01:59.6]}
26... a6 {[%clk 0:01:16.7]} 27. bxa6 {[%clk 0:01:55.2]} 27... Rxa6 {[%clk
0:01:11.1]} 28. Qf3 {[%clk 0:01:55.1]} 28... Ra8 {[%clk 0:01:06.3]} 29. Bf6+
{[%clk 0:01:54.9]} 29... Kg8 {[%clk 0:01:02.4]} 30. Qe3 {[%clk 0:01:53.5]} 30...
Rf8 {[%clk 0:00:57.6]} 31. Qxh6 {[%clk 0:01:38.4]} 31... Rxf6 {[%clk 0:00:57.3]}
32. Rxf6 {[%clk 0:01:36]} 32... Nxf6 {[%clk 0:00:57.1]} 33. Qxg6+ {[%clk
0:01:36.2]} 33... Qg7 {[%clk 0:00:57.1]} 34. Qxg7+ {[%clk 0:01:24.7]} 34... Kxg7
{[%clk 0:00:56.8]} 35. Nf5+ {[%clk 0:01:25.6]} 35... Kf7 {[%clk 0:00:54.6]} 36.
Nxd6+ {[%clk 0:01:26.5]} 36... Ke7 {[%clk 0:00:55]} 37. Nf5+ {[%clk 0:01:06.6]}
37... Kd7 {[%clk 0:00:53.1]} 38. Ne3 {[%clk 0:01:06.7]} 38... Nxe4 {[%clk
0:00:52]} 39. h4 {[%clk 0:01:07.4]} 39... Nd6 {[%clk 0:00:50.7]} 40. h5 {[%clk
0:01:05.8]} 40... Nbxc4 {[%clk 0:00:50.7]} 41. Ng4 {[%clk 0:00:47]} 41... Nf7
{[%clk 0:00:42.9]} 42. h6 {[%clk 0:00:44.8]} 42... Kd6 {[%clk 0:00:40.8]} 43. h7
{[%clk 0:00:44.6]} 43... Kxd5 {[%clk 0:00:40.8]} 44. Nh6 {[%clk 0:00:43.3]}
44... Nh8 {[%clk 0:00:40.6]} 45. g4 {[%clk 0:00:43.9]} 45... Nd6 {[%clk
0:00:38.9]} 46. g5 {[%clk 0:00:42.7]} 46... c4 {[%clk 0:00:36.7]} 47. Kf2 {[%clk
0:00:42.5]} 47... Kd4 {[%clk 0:00:27.8]} 48. Ke2 {[%clk 0:00:40.2]} 48... c3
{[%clk 0:00:27.2]} 49. Ng4 {[%clk 0:00:31.5]} 49... Nc4 {[%clk 0:00:22.4]} 50.
Nf2 {[%clk 0:00:22.4]} 50... c2 {[%clk 0:00:21.5]} 51. Nd3 {[%clk 0:00:22.9]}
51... e4 {[%clk 0:00:21.4]} 52. Nc1 {[%clk 0:00:23.5]} 52... Kc3 {[%clk
0:00:20.2]} 53. Ke1 {[%clk 0:00:18]} 53... Kb2 {[%clk 0:00:20]} 54. Ne2 {[%clk
0:00:18.7]} 54... c1=Q+ {[%clk 0:00:19.9]} 55. Nxc1 {[%clk 0:00:19.5]} 55...
Kxc1 {[%clk 0:00:20.8]} 56. Ke2 {[%clk 0:00:20.4]} 56... Kc2 {[%clk 0:00:21.2]}
57. Ke1 {[%clk 0:00:17.9]} 57... Kc3 {[%clk 0:00:21.4]} 58. Kf2 {[%clk
0:00:18.8]} 58... Kd3 {[%clk 0:00:21.7]} 59. Ke1 {[%clk 0:00:19.2]} 59... e3
{[%clk 0:00:22]} 60. Kd1 {[%clk 0:00:19.7]} 60... Ne5 {[%clk 0:00:19]} 61. Ke1
{[%clk 0:00:18.4]} 61... Nf3+ {[%clk 0:00:19.2]} 62. Kf1 {[%clk 0:00:19.3]}
62... Nxg5 {[%clk 0:00:19.8]} 63. Ke1 {[%clk 0:00:18.7]} 63... Nxh7 {[%clk
0:00:20.7]} 64. Kf1 {[%clk 0:00:19]} 64... Nf6 {[%clk 0:00:20.6]} 65. Kg2 {[%clk
0:00:19.8]} 65... Ng6 {[%clk 0:00:21.1]} 66. Kf3 {[%clk 0:00:20.6]} 66... e2
{[%clk 0:00:21.4]} 67. Kf2 {[%clk 0:00:20.6]} 67... Kd2 {[%clk 0:00:21]} 68. Kg2
{[%clk 0:00:20.6]} 68... Nd5 {[%clk 0:00:21.9]} 69. Kf3 {[%clk 0:00:20.8]} 69...
Ne5+ {[%clk 0:00:22.3]} 70. Ke4 {[%clk 0:00:20]} 70... Nc6 {[%clk 0:00:23.2]}
71. Kf5 {[%clk 0:00:19.2]} 71... Nb8 {[%clk 0:00:24.1]} 72. Ke6 {[%clk
0:00:19.6]} 72... Nb6 {[%clk 0:00:25]} 73. Kd6 {[%clk 0:00:20.2]} 73... Na8
{[%clk 0:00:25.9]} 74. Kc5 {[%clk 0:00:19]} 74... e1=Q {[%clk 0:00:26.8]} 75.
Kd5 {[%clk 0:00:19.8]} 75... Qe3 {[%clk 0:00:26.5]} 76. Kd6 {[%clk 0:00:20.7]}
76... Qf4+ {[%clk 0:00:25]} 77. Kc5 {[%clk 0:00:20.8]} 77... Na6+ {[%clk
0:00:25.1]} 78. Kc6 {[%clk 0:00:20.9]} 78... Nb4+ {[%clk 0:00:25.3]} 79. Kb7
{[%clk 0:00:21]} 79... Nc2 {[%clk 0:00:26.2]} 80. Kc6 {[%clk 0:00:21.2]} 80...
Ne1 {[%clk 0:00:27.1]} 81. Kb7 {[%clk 0:00:21.7]} 81... Nb6 {[%clk 0:00:27.5]}
82. Kc6 {[%clk 0:00:22.6]} 82... Nc4 {[%clk 0:00:27.9]} 83. Kc5 {[%clk
0:00:23.2]} 83... Nb2 {[%clk 0:00:28.7]} 84. Kb5 {[%clk 0:00:23.1]} 84... Kc3
{[%clk 0:00:29.2]} 85. Kc5 {[%clk 0:00:24]} 85... Qe5+ {[%clk 0:00:29.2]} 86.
Kb6 {[%clk 0:00:23.6]} 86... Kb4 {[%clk 0:00:29.3]} 87. Kc6 {[%clk 0:00:23.8]}
87... Nd1 {[%clk 0:00:28.3]} 88. Kd7 {[%clk 0:00:23.5]} 88... Qf6 {[%clk
0:00:28.4]} 89. Ke8 {[%clk 0:00:23.6]} 89... Qg7 {[%clk 0:00:27.6]} 90. Kd8
{[%clk 0:00:24.5]} 90... Kc5 {[%clk 0:00:27.5]} 91. Kc8 {[%clk 0:00:25.4]} 91...
Kc6 {[%clk 0:00:27.2]} 92. Kb8 {[%clk 0:00:26.3]} 92... Qb7# {[%clk 0:00:26.1]}
0-1

[Event "Early-Titled-Tuesday-Blitz-May-14-2024"]
[Site "Chess.com"]
[Date "2024.05.14"]
[Round "4"]
[White "average_trans"]
[Black "karinachess1"]
[Result "0-1"]
[WhiteElo "2346"]
[BlackElo "2599"]
[TimeControl "180+1"]
[EndTime "8:42:26 PDT"]
[Termination "karinachess1 won by resignation"]

1. e3 {[%clk 0:02:59.2]} 1... e5 {[%clk 0:02:59.3]} 2. c4 {[%clk 0:02:59.3]}
2... Nf6 {[%clk 0:02:57.6]} 3. Nc3 {[%clk 0:02:59.3]} 3... d5 {[%clk 0:02:54.5]}
4. cxd5 {[%clk 0:02:59.5]} 4... Nxd5 {[%clk 0:02:55.4]} 5. Nxd5 {[%clk
0:02:59.9]} 5... Qxd5 {[%clk 0:02:55.3]} 6. b3 {[%clk 0:03:00]} 6... Nc6 {[%clk
0:02:52.8]} 7. Bb2 {[%clk 0:02:59.7]} 7... Be7 {[%clk 0:02:52.8]} 8. Bc4 {[%clk
0:02:59.5]} 8... Qxg2 {[%clk 0:02:43.8]} 9. Qf3 {[%clk 0:02:59.5]} 9... Qxf3
{[%clk 0:02:41.9]} 10. Nxf3 {[%clk 0:03:00.4]} 10... f6 {[%clk 0:02:35.4]} 11.
Rg1 {[%clk 0:02:58.3]} 11... g6 {[%clk 0:02:08.2]} 12. O-O-O {[%clk 0:02:56]}
12... Bd7 {[%clk 0:01:55.4]} 13. d4 {[%clk 0:02:53.3]} 13... exd4 {[%clk
0:01:47.2]} 14. exd4 {[%clk 0:02:52.5]} 14... O-O-O {[%clk 0:01:44.2]} 15. Rge1
{[%clk 0:02:46.9]} 15... Bb4 {[%clk 0:01:35.1]} 16. Re3 {[%clk 0:02:39.5]} 16...
Rhf8 {[%clk 0:01:19.5]} 17. a3 {[%clk 0:02:37.8]} 17... Bd6 {[%clk 0:01:19.1]}
18. Kb1 {[%clk 0:02:34.5]} 18... Bf5+ {[%clk 0:01:14.8]} 19. Ka2 {[%clk
0:02:34.4]} 19... Bf4 {[%clk 0:01:14.9]} 20. Ree1 {[%clk 0:02:28.4]} 20... Rfe8
{[%clk 0:01:11.3]} 21. Rxe8 {[%clk 0:02:22]} 21... Rxe8 {[%clk 0:01:12.2]} 22.
Bb5 {[%clk 0:02:22.4]} 22... Bg4 {[%clk 0:00:59.5]} 23. d5 {[%clk 0:01:53.9]}
23... Bxf3 {[%clk 0:00:54.6]} 24. dxc6 {[%clk 0:01:53.9]} 24... Bxd1 {[%clk
0:00:41.8]} 25. cxb7+ {[%clk 0:01:53.4]} 25... Kxb7 {[%clk 0:00:42.7]} 26. Bxe8
{[%clk 0:01:53.6]} 26... Be5 {[%clk 0:00:35.7]} 27. b4 {[%clk 0:01:22.1]} 27...
Kc8 {[%clk 0:00:31.4]} 28. Bxe5 {[%clk 0:01:20.8]} 28... fxe5 {[%clk 0:00:32.3]}
29. Kb2 {[%clk 0:01:20.2]} 29... Kd8 {[%clk 0:00:32.5]} 30. Bf7 {[%clk
0:01:20.3]} 30... Ke7 {[%clk 0:00:32.8]} 31. Bc4 {[%clk 0:01:09.4]} 31... Kd6
{[%clk 0:00:29.1]} 32. Kc3 {[%clk 0:01:08.8]} 32... h6 {[%clk 0:00:27.8]} 33.
Bf7 {[%clk 0:01:02.2]} 33... g5 {[%clk 0:00:28]} 34. Bg6 {[%clk 0:01:01.6]}
34... Ba4 {[%clk 0:00:22.6]} 35. Kd3 {[%clk 0:00:55.3]} 35... Bc6 {[%clk
0:00:18.9]} 36. Kc4 {[%clk 0:00:52.6]} 36... Bd7 {[%clk 0:00:12.9]} 37. Kd3
{[%clk 0:00:51.2]} 37... c5 {[%clk 0:00:10.8]} 38. Kc4 {[%clk 0:00:51.1]} 38...
cxb4 {[%clk 0:00:10.3]} 39. axb4 {[%clk 0:00:51.8]} 39... Ba4 {[%clk 0:00:09]}
40. Be4 {[%clk 0:00:50.6]} 40... Bc6 {[%clk 0:00:09.1]} 41. Bg6 {[%clk
0:00:50.1]} 41... Bf3 {[%clk 0:00:07.7]} 42. Bf5 {[%clk 0:00:45.6]} 42... h5
{[%clk 0:00:07.7]} 43. Bg6 {[%clk 0:00:45.2]} 43... h4 {[%clk 0:00:08.2]} 44.
Bf5 {[%clk 0:00:43.3]} 44... Be2+ {[%clk 0:00:08.7]} 45. Kc3 {[%clk 0:00:42.7]}
45... Kc6 {[%clk 0:00:08.4]} 46. Bg6 {[%clk 0:00:39.6]} 46... Kb5 {[%clk
0:00:06.9]} 47. Be8+ {[%clk 0:00:39.4]} 47... Kb6 {[%clk 0:00:07.5]} 48. Bd7
{[%clk 0:00:38.8]} 48... Bb5 {[%clk 0:00:07.2]} 49. Be6 {[%clk 0:00:38.4]} 49...
Kc6 {[%clk 0:00:07.3]} 50. Bf7 {[%clk 0:00:38.2]} 50... Kd6 {[%clk 0:00:07.5]}
51. Bg6 {[%clk 0:00:34.3]} 51... Kd5 {[%clk 0:00:05.7]} 52. Bf5 {[%clk 0:00:30]}
52... e4 {[%clk 0:00:06]} 53. Bg6 {[%clk 0:00:29.8]} 53... Ke5 {[%clk
0:00:06.6]} 54. Bh7 {[%clk 0:00:28.8]} 54... Bc6 {[%clk 0:00:04.6]} 55. Kd2
{[%clk 0:00:26.5]} 55... Kd4 {[%clk 0:00:04.7]} 56. Bg8 {[%clk 0:00:25.4]} 56...
Bd5 {[%clk 0:00:04]} 57. Bh7 {[%clk 0:00:25]} 57... Kc4 {[%clk 0:00:04.1]} 58.
Ke3 {[%clk 0:00:25.2]} 58... Kxb4 {[%clk 0:00:04.6]} 59. Kd4 {[%clk 0:00:25.7]}
59... Bc6 {[%clk 0:00:04.7]} 60. Ke5 {[%clk 0:00:24.1]} 60... a5 {[%clk
0:00:04.6]} 61. Kf6 {[%clk 0:00:23.9]} 61... Bd5 {[%clk 0:00:04.6]} 62. Ke5
{[%clk 0:00:19.7]} 62... a4 {[%clk 0:00:03.2]} 63. Kd4 {[%clk 0:00:10.3]} 63...
a3 {[%clk 0:00:03.2]} 64. Bxe4 {[%clk 0:00:11.2]} 64... Bxe4 {[%clk 0:00:03.2]}
65. Ke5 {[%clk 0:00:12.1]} 65... a2 {[%clk 0:00:03.6]} 0-1

[Event "Early-Titled-Tuesday-Blitz-May-14-2024"]
[Site "Chess.com"]
[Date "2024.05.14"]
[Round "4"]
[White "profedechess93"]
[Black "rudolfjun2005"]
[Result "1-0"]
[WhiteElo "2646"]
[BlackElo "2439"]
[TimeControl "180+1"]
[EndTime "8:42:32 PDT"]
[Termination "profedechess93 won by resignation"]

1. e4 {[%clk 0:03:00.9]} 1... c5 {[%clk 0:02:59.7]} 2. Nf3 {[%clk 0:03:00.6]}
2... Nc6 {[%clk 0:02:59.5]} 3. Bb5 {[%clk 0:03:01]} 3... g6 {[%clk 0:02:59.5]}
4. c3 {[%clk 0:03:01.5]} 4... e5 {[%clk 0:02:58.3]} 5. O-O {[%clk 0:02:59.6]}
5... Bg7 {[%clk 0:02:58]} 6. Re1 {[%clk 0:02:54.9]} 6... Nge7 {[%clk 0:02:56.3]}
7. d3 {[%clk 0:02:45.2]} 7... O-O {[%clk 0:02:51.6]} 8. Bg5 {[%clk 0:02:43]}
8... a6 {[%clk 0:02:43.4]} 9. Bc4 {[%clk 0:02:41.3]} 9... d6 {[%clk 0:02:40.1]}
10. a4 {[%clk 0:02:38.9]} 10... Be6 {[%clk 0:02:36.6]} 11. Nbd2 {[%clk
0:02:30.9]} 11... h6 {[%clk 0:02:29.4]} 12. Be3 {[%clk 0:02:27.7]} 12... b6
{[%clk 0:02:27.9]} 13. b4 {[%clk 0:01:29.2]} 13... cxb4 {[%clk 0:02:21]} 14.
cxb4 {[%clk 0:01:30.1]} 14... Nxb4 {[%clk 0:02:20.5]} 15. Bxe6 {[%clk
0:01:03.3]} 15... fxe6 {[%clk 0:02:17.8]} 16. Qb3 {[%clk 0:01:03.8]} 16... Nbc6
{[%clk 0:02:11.6]} 17. Qxe6+ {[%clk 0:01:01.4]} 17... Kh7 {[%clk 0:02:07.9]} 18.
Rab1 {[%clk 0:00:46.8]} 18... Rb8 {[%clk 0:01:58.5]} 19. Rec1 {[%clk 0:00:43.7]}
19... b5 {[%clk 0:01:41.9]} 20. axb5 {[%clk 0:00:41.1]} 20... axb5 {[%clk
0:01:42.8]} 21. Qa2 {[%clk 0:00:29.3]} 21... Qd7 {[%clk 0:00:56.7]} 22. Qa6
{[%clk 0:00:29.3]} 22... b4 {[%clk 0:00:45.9]} 23. Qa4 {[%clk 0:00:27]} 23...
Ra8 {[%clk 0:00:42.7]} 24. Qc2 {[%clk 0:00:26.6]} 24... Rfc8 {[%clk 0:00:41.8]}
25. Qb2 {[%clk 0:00:25.4]} 25... Qe6 {[%clk 0:00:37]} 26. Nc4 {[%clk 0:00:25.1]}
26... Rab8 {[%clk 0:00:33.7]} 27. Nb6 {[%clk 0:00:25.3]} 27... Rc7 {[%clk
0:00:32.9]} 28. Nc4 {[%clk 0:00:20.8]} 28... Rcb7 {[%clk 0:00:32]} 29. Nfd2
{[%clk 0:00:17.9]} 29... d5 {[%clk 0:00:30.6]} 30. exd5 {[%clk 0:00:17.7]} 30...
Nxd5 {[%clk 0:00:29.9]} 31. Ne4 {[%clk 0:00:17.9]} 31... Nxe3 {[%clk 0:00:29.9]}
32. fxe3 {[%clk 0:00:18.3]} 32... Qd5 {[%clk 0:00:22.2]} 33. Qb3 {[%clk
0:00:16.9]} 33... Rd7 {[%clk 0:00:21]} 34. Rd1 {[%clk 0:00:15.6]} 34... Rf8
{[%clk 0:00:16.2]} 35. h3 {[%clk 0:00:15.4]} 35... Ra8 {[%clk 0:00:12.5]} 36.
Nb6 {[%clk 0:00:13.9]} 36... Qxb3 {[%clk 0:00:11.2]} 37. Rxb3 {[%clk 0:00:14.8]}
37... Rda7 {[%clk 0:00:05.4]} 38. Nxa8 {[%clk 0:00:14.9]} 38... Rxa8 {[%clk
0:00:06.3]} 39. Rc1 {[%clk 0:00:15.5]} 39... Ra6 {[%clk 0:00:05]} 40. Nc5 {[%clk
0:00:15.6]} 40... Rb6 {[%clk 0:00:05.3]} 41. Nd7 {[%clk 0:00:15.5]} 41... Ra6
{[%clk 0:00:05.5]} 42. Nc5 {[%clk 0:00:15.8]} 42... Rb6 {[%clk 0:00:05.6]} 43.
Ne6 {[%clk 0:00:16.4]} 43... Bf6 {[%clk 0:00:04.8]} 44. Rc5 {[%clk 0:00:15.9]}
44... Be7 {[%clk 0:00:04.3]} 45. Rd5 {[%clk 0:00:15.1]} 45... Kg8 {[%clk
0:00:04.3]} 46. Nc5 {[%clk 0:00:12.3]} 46... Kf7 {[%clk 0:00:04.2]} 47. Ne4
{[%clk 0:00:11.8]} 47... Ra6 {[%clk 0:00:04.2]} 48. Rd7 {[%clk 0:00:11]} 48...
Ke6 {[%clk 0:00:04.2]} 49. Rb7 {[%clk 0:00:10.6]} 49... Bf8 {[%clk 0:00:03.2]}
50. Rb1 {[%clk 0:00:09.3]} 50... Ra3 {[%clk 0:00:02.1]} 51. Rc7 {[%clk
0:00:08.6]} 51... Kd5 {[%clk 0:00:02.5]} 52. Nf6+ {[%clk 0:00:07.9]} 52... Ke6
{[%clk 0:00:02.7]} 53. Rxc6+ {[%clk 0:00:07.9]} 53... Kf5 {[%clk 0:00:03.4]} 54.
e4+ {[%clk 0:00:07.6]} 54... Kf4 {[%clk 0:00:03.6]} 55. Rf1+ {[%clk 0:00:08.3]}
55... Kg5 {[%clk 0:00:03.9]} 56. Ng4 {[%clk 0:00:09.2]} 56... h5 {[%clk
0:00:03.9]} 57. Rxf8 {[%clk 0:00:08.5]} 57... hxg4 {[%clk 0:00:03.4]} 58. hxg4
{[%clk 0:00:09.4]} 58... b3 {[%clk 0:00:03.9]} 59. Rb6 {[%clk 0:00:09.3]} 59...
Ra2 {[%clk 0:00:04.1]} 60. Rxb3 {[%clk 0:00:08.4]} 60... Kxg4 {[%clk 0:00:05]}
61. Rb1 {[%clk 0:00:07.4]} 61... Kg3 {[%clk 0:00:05.4]} 62. Rbf1 {[%clk
0:00:07.5]} 62... g5 {[%clk 0:00:05]} 63. R8f3+ {[%clk 0:00:08.4]} 63... Kg4
{[%clk 0:00:05.7]} 64. R3f2 {[%clk 0:00:09]} 64... Ra3 {[%clk 0:00:06.1]} 65.
Rf3 {[%clk 0:00:09.4]} 65... Ra2 {[%clk 0:00:06.2]} 66. Kh2 {[%clk 0:00:10.3]}
66... Rc2 {[%clk 0:00:06.3]} 67. Rg3+ {[%clk 0:00:10.9]} 67... Kh5 {[%clk
0:00:06.3]} 68. Rf5 {[%clk 0:00:11.8]} 68... Kh4 {[%clk 0:00:06.8]} 69. Rfxg5
{[%clk 0:00:12.7]} 69... Rxg2+ {[%clk 0:00:06.2]} 70. Kh1 {[%clk 0:00:10.4]}
70... Rh2+ {[%clk 0:00:05]} 71. Kg1 {[%clk 0:00:09.7]} 71... Rh1+ {[%clk
0:00:05.5]} 72. Kf2 {[%clk 0:00:09.6]} 72... Rf1+ {[%clk 0:00:05.9]} 73. Ke2
{[%clk 0:00:09.6]} 73... Rf2+ {[%clk 0:00:05.2]} 74. Kd1 {[%clk 0:00:08.6]}
74... Rc2 {[%clk 0:00:05.5]} 75. R5g4+ {[%clk 0:00:07.2]} 75... Kh5 {[%clk
0:00:05.4]} 76. Kxc2 {[%clk 0:00:07.7]} 1-0